bitfinex/quotes_ETHUSD_20250909
["timestamp","ask_amount","ask_price","bid_price","bid_amount"]
[1757431914131,0.997,4285.8,4285.2,0.9361]
[1757431914332,0.997,4285.8,4285.1,0.116]
[1757431914531,1.113,4285.8,4285.2,2.33360492]
[1757431915007,1.113,4285.8,4285.3,2.33355811]
[1757431915166,0.026,4285.8,4285.7,2.61974111]
[1757431915470,0.026,4285.8,4285.7,4.26076901]
[1757431916284,0.026,4285.8,4285.7,7.26076901]
[1757431916285,1e-08,4285.8,4285.7,7.26076901]
[1757431916754,1e-08,4285.8,4285.7,11.20676901]
[1757431918542,1e-08,4285.8,4285.7,11.50649785]
[1757431918781,0.001,4286.7,4286.6,2.33285121]
[1757431918959,0.001,4286.7,4286.6,10.04542906]
[1757431919281,0.001,4286.7,4286.6,11.26792906]
[1757431920101,0.001,4286.7,4286.6,7.32192906]
[1757431920276,0.001,4286.7,4286.6,11.26892906]
[1757431920442,0.001,4286.7,4286.6,7.32192906]
[1757431920642,0.001,4286.7,4286.6,10.80132906]
[1757431920859,0.001,4286.7,4286.6,6.85632906]
[1757431921082,0.001,4286.7,4286.6,2.33285121]
[1757431921247,0.001,4286.7,4286.2,0.4705]
[1757431921609,1.2155,4286.6,4285.7,1.791]
[1757431921771,1.2155,4286.6,4285.5,0.4705]
[1757431921772,1.2155,4286.6,4286.1,2.3330996]
[1757431922102,1.2155,4286.6,4284.7,0.4981]
[1757431922103,1.03625,4286.5,4284.7,0.4981]
[1757431922387,0.792,4286.3,4284.6,0.002]
[1757431922571,0.792,4286.3,4284.9,0.4685]
[1757431922777,0.792,4286.3,4285.4,2.33348127]
[1757431923076,3.948,4286.2,4285.6,2.33339548]
[1757431923288,0.2979,4285.7,4284.8,0.025]
[1757431923447,0.4629,4285.6,4284.8,0.025]
[1757431923646,3.744,4285.5,4284.8,0.025]
[1757431923849,3.744,4285.5,4285.1,2.33365622]
[1757431924149,5.74,4285.6,4285.1,2.33363779]
[1757431924347,5.74,4285.6,4284.9,2.33376985]
[1757431924600,5.74,4285.6,4285.2,2.33361078]
[1757431924767,5.74,4285.6,4285.3,2.33355554]
[1757431924950,5.74,4285.6,4285.1,2.33362581]
[1757431925155,5.74,4285.6,4284.8,0.025]
[1757431925349,6.1892,4285.6,4284.8,2.35882297]
[1757431925579,6.1892,4285.6,4284.8,2.35877687]
[1757431925756,6.1892,4285.6,4284.8,0.025]
[1757431925959,0.2979,4284.9,4284.8,0.025]
[1757431926349,1.21,4284.9,4284.8,0.025]
[1757431926588,2.123,4284.9,4284.8,0.025]
[1757431926782,4.45677675,4284.9,4284.8,0.025]
[1757431927261,2.123,4284.9,4284.8,0.025]
[1757431927661,4.7088,4284.9,4284.8,0.025]
[1757431928389,3.948,4284.9,4284.8,0.025]
[1757431928573,3.948,4284.9,4284.8,2.35883121]
[1757431929165,3.948,4284.9,4284.8,0.025]
[1757431929708,3.948,4284.9,4284.8,2.35883121]
[1757431929907,3.948,4284.9,4284.8,0.025]
[1757431930197,4.2459,4284.9,4284.8,0.025]
[1757431930370,3.948,4284.9,4284.8,0.025]
[1757431931396,5.55003138,4284.9,4284.8,0.025]
[1757431931559,8.67580813,4284.9,4284.8,0.025]
[1757431932456,11.89294359,4284.9,4284.8,0.025]
[1757431934206,8.89294359,4284.9,4284.8,0.025]
[1757431935615,8.89294359,4284.9,4284.8,0.027]
[1757431936211,11.89294359,4284.9,4284.8,0.027]
[1757431937664,7.49574359,4284.9,4284.8,0.027]
[1757431937923,11.89294359,4284.9,4284.8,0.027]
[1757431938800,3.12588568,4284.7,4284.6,0.002]
[1757431938976,8.13402114,4284.7,4284.6,0.002]
[1757431939176,9.34402114,4284.7,4284.6,0.002]
[1757431940716,13.29202114,4284.7,4284.6,0.002]
[1757431941844,2.33410358,4284.3,4283.9,0.002]
[1757431941990,6.12626704,4284.0,4283.9,0.002]
[1757431942189,6.42416704,4284.0,4283.9,0.002]
[1757431942390,10.37916704,4284.0,4283.9,0.002]
[1757431942724,11.29126704,4284.0,4283.9,0.002]
[1757431943490,7.33626704,4284.0,4283.9,0.002]
[1757431943690,12.47414204,4284.0,4283.9,0.002]
[1757431945714,6.12632152,4283.9,4283.8,1e-08]
[1757431945920,7.91832152,4283.9,4283.8,1e-08]
[1757431946126,8.21622152,4283.9,4283.8,1e-08]
[1757431946369,9.5203529,4283.9,4283.8,1e-08]
[1757431946868,9.0711529,4283.9,4283.8,1e-08]
[1757431947454,9.5203529,4283.9,4283.8,1e-08]
[1757431948542,13.0251529,4283.9,4283.8,1e-08]
[1757431949051,12.2643529,4283.9,4283.8,1e-08]
[1757431949454,12.5622529,4283.9,4283.8,1e-08]
[1757431950270,13.4743529,4283.9,4283.8,1e-08]
[1757431951064,13.68987484,4283.9,4283.8,1e-08]
[1757431951763,6.50445332,4283.9,4283.8,1e-08]
[1757431951932,5.747,4283.9,4283.8,1.22540001]
[1757431952264,5.7462,4283.9,4283.8,1.22540001]
[1757431952420,1.7912,4283.9,4283.8,0.74490001]
[1757431952623,0.116,4283.9,4283.8,1.22540001]
[1757431952822,3.624,4284.1,4283.8,1.22540001]
[1757431953024,5.95826704,4284.0,4283.8,0.29950001]
[1757431953359,6.29432152,4283.9,4283.8,0.74490001]
[1757431953566,7.08632152,4283.9,4283.8,0.74490001]
[1757431953963,1.792,4284.5,4283.8,1.22540001]
[1757431954124,0.116,4283.9,4283.8,0.78000001]
[1757431954328,4.076,4283.9,4283.8,0.78000001]
[1757431954553,4.076,4283.9,4283.8,0.29950001]
[1757431954738,7.60992152,4283.9,4283.8,1e-08]
[1757431955144,7.60992152,4283.9,4283.8,1.22540001]
[1757431955145,3.961,4283.9,4283.8,1.22540001]
[1757431955565,0.116,4283.9,4283.8,1.22540001]
[1757431955762,1.792,4284.5,4283.8,1.22540001]
[1757431956068,2.33432152,4283.9,4283.8,1e-08]
[1757431956269,7.40622152,4283.9,4283.8,1e-08]
[1757431956495,8.06736822,4283.9,4283.8,1e-08]
[1757431956858,8.38026822,4283.9,4283.8,1e-08]
[1757431957189,8.06736822,4283.9,4283.8,1e-08]
[1757431957946,3.12632152,4283.9,4283.8,0.29950001]
[1757431958146,7.09432152,4283.9,4283.8,0.74490001]
[1757431958993,2.33425223,4284.1,4283.8,0.74490001]
[1757431959197,6.30227271,4284.0,4283.8,0.29950001]
[1757431959397,6.30132152,4283.9,4283.8,0.29950001]
[1757431959713,7.16487603,4283.9,4283.8,1e-08]
[1757431959869,8.73167603,4283.9,4283.8,1e-08]
[1757431960056,7.95687603,4283.9,4283.8,1e-08]
[1757431961205,8.94797744,4283.9,4283.8,1e-08]
[1757431961697,12.41997744,4283.9,4283.8,1e-08]
[1757431963067,11.17617744,4283.9,4283.8,1e-08]
[1757431963261,12.42297744,4283.9,4283.8,1e-08]
[1757431964901,12.9214965,4283.9,4283.8,1e-08]
[1757431966100,3.12659401,4283.4,4283.3,0.002]
[1757431966300,12.81524729,4283.4,4283.3,0.002]
[1757431966500,12.81424729,4283.4,4283.3,0.002]
[1757431967200,0.36545246,4293.6,4283.3,1.2274]
[1757431967201,0.64843056,4284.8,4283.3,1.2274]
[1757431967372,0.116,4283.6,4283.4,0.9259]
[1757431967566,3.707,4283.6,4283.3,0.002]
[1757431967769,3.707,4283.6,4283.5,0.2995]
[1757431967962,6.04148501,4283.6,4283.5,0.2995]
[1757431968163,4.499,4283.6,4283.5,1.2254]
[1757431968900,3.972,4283.6,4283.5,1.2254]
[1757431969199,3.972,4283.6,4283.5,1.5932091]
[1757431969706,3.972,4283.6,4283.5,1.2254]
[1757431970575,3.972,4283.6,4283.5,3.55993951]
[1757431970775,0.116,4283.9,4283.8,2.33437602]
[1757431970976,1.792,4284.1,4283.8,2.33432967]
[1757431971177,3.976,4284.1,4284.0,0.2995]
[1757431971425,3.976,4284.1,4284.0,1.2254]
[1757431971921,3.976,4284.1,4284.0,0.2995]
[1757431972222,4.092,4284.1,4284.0,0.7449]
[1757431972424,3.975,4284.1,4284.0,1.2254]
[1757431972628,3.977,4284.1,4284.0,3.92724056]
[1757431972784,0.001,4284.1,4284.0,3.92724056]
[1757431973196,0.001,4284.1,4284.0,4.04324056]
[1757431973398,0.001,4284.1,4284.0,7.04324056]
[1757431974303,0.001,4284.1,4284.0,8.83524056]
[1757431975089,0.001,4284.6,4284.5,2.33399463]
[1757431975289,0.001,4284.6,4284.5,9.91714118]
[1757431975516,0.001,4284.6,4284.5,11.11920124]
[1757431975830,0.001,4285.0,4284.9,2.33377675]
[1757431976137,0.001,4285.0,4284.9,7.26511451]
[1757431976285,0.001,4285.0,4284.9,8.46717675]
[1757431976505,0.001,4285.6,4285.5,2.33345]
[1757431976804,0.001,4285.6,4285.5,9.31045]
[1757431976999,0.001,4285.6,4285.5,3.8609]
[1757431977232,0.001,4285.6,4285.5,6.67485]
[1757431978436,0.0002,4285.6,4285.5,6.67485]
[1757431978641,0.0002,4285.6,4285.5,11.55569075]
[1757431980744,0.001,4286.1,4285.7,2.33334111]
[1757431980953,0.001,4286.1,4286.0,2.33317778]
[1757431981127,0.17140628,4288.1,4286.9,2.33268795]
[1757431981313,0.117,4288.6,4286.9,11.21868795]
[1757431981536,0.117,4288.6,4286.9,13.77813345]
[1757431981907,0.4458,4288.1,4286.9,11.4534455]
[1757431982161,0.4635,4287.7,4286.9,6.2621455]
[1757431982366,3.09983354,4287.0,4286.0,2.2458]
[1757431982531,0.7672,4287.0,4286.2,2.33305794]
[1757431982864,0.7672,4287.0,4286.0,1.791]
[1757431983008,2.33300345,4286.4,4286.0,3.989]
[1757431983210,0.4635,4286.3,4286.0,3.989]
[1757431983452,2.33324027,4285.9,4284.9,1.53010312]
[1757431983610,0.9093,4286.2,4284.9,1.53010312]
[1757431983611,0.025,4285.8,4285.1,2.37364892]
[1757431983940,0.025,4285.8,4285.3,2.33351398]
[1757431984141,0.025,4285.8,4285.2,0.45]
[1757431984368,0.025,4285.8,4285.1,0.04]
[1757431984664,0.9343,4285.8,4285.1,4.029]
[1757431984813,0.025,4285.8,4285.2,0.72623613]
[1757431985013,0.025,4285.8,4285.4,2.33348456]
[1757431985249,0.025,4285.8,4285.2,1.1529]
[1757431985426,0.025,4285.8,4285.7,0.2899]
[1757431985834,0.025,4285.8,4285.7,2.62324111]
[1757431986046,0.025,4285.8,4285.7,3.16391388]
[1757431986251,0.025,4285.8,4285.7,3.61391388]
[1757431986460,0.025,4285.8,4285.7,1.28057277]
[1757431986665,0.025,4285.8,4285.7,0.54067277]
[1757431986836,0.025,4285.8,4285.4,3.0]
[1757431987043,2.33336543,4285.7,4285.2,0.7029]
[1757431987338,2.79692332,4285.6,4285.1,4.031]
[1757431987548,0.4635,4285.6,4285.1,0.04]
[1757431987954,2.77915294,4285.7,4285.1,0.04]
[1757431987955,0.3027,4285.2,4285.1,0.04]
[1757431988130,0.9093,4285.5,4285.1,0.04]
[1757431988331,0.4635,4285.5,4285.1,0.04]
[1757431988531,2.3335185,4285.4,4285.1,0.04]
[1757431988766,2.79696497,4285.5,4285.1,0.04]
[1757431988966,0.3027,4285.2,4285.1,0.04]
[1757431989174,2.63631336,4285.2,4285.1,0.04]
[1757431989333,4.33761336,4285.2,4285.1,0.04]
[1757431991183,0.3027,4285.2,4285.1,0.04]
[1757431991362,3.989,4285.4,4285.1,0.04]
[1757431992174,6.32250711,4285.4,4285.1,0.04]
[1757431992325,0.116,4285.3,4285.1,0.04]
[1757431993381,3.989,4285.4,4285.2,0.2899]
[1757431993924,0.3027,4285.3,4285.1,0.04]
[1757431994131,3.989,4285.4,4285.1,0.04]
[1757431994332,0.17626917,4285.9,4285.2,3.18949943]
[1757431994572,0.116,4286.0,4285.3,2.33355352]
[1757431994742,2.44918998,4286.0,4285.3,2.33354932]
[1757431994946,2.44918998,4286.0,4285.2,0.116]
[1757431995142,0.116,4286.0,4285.2,0.116]
[1757431995457,0.116,4285.6,4285.1,0.04]
[1757431995659,2.33351187,4285.4,4285.1,0.04]
[1757431995962,2.33346054,4285.5,4285.1,0.04]
[1757431996127,0.3027,4285.2,4285.1,0.04]
[1757431996753,2.89521,4285.6,4285.1,0.04]
[1757431996754,0.116,4285.6,4285.1,0.04]
[1757431997002,2.44941431,4285.6,4285.1,0.04]
[1757431997197,0.116,4285.6,4285.1,3.07529762]
[1757431997346,0.116,4285.6,4285.1,0.74168255]
[1757431997547,2.44944292,4285.6,4285.1,0.04]
[1757431997885,2.33346293,4285.5,4285.1,0.04]
[1757431998080,2.33355006,4285.4,4285.1,0.04]
[1757431998301,0.3027,4285.2,4285.1,0.04]
[1757431998610,0.4635,4285.4,4285.1,0.04]
[1757431998898,0.3027,4285.2,4285.1,0.04]
[1757431999056,2.63631336,4285.2,4285.1,0.04]
[1757431999655,0.3027,4285.2,4285.1,0.04]
[1757431999862,3.09981336,4285.2,4285.1,0.04]
[1757432000089,0.7662,4285.2,4285.1,0.04]
[1757432000591,3.54561336,4285.2,4285.1,0.04]
[1757432000741,5.04152802,4285.2,4285.1,0.04]
[1757432001830,2.26211466,4285.2,4285.1,0.04]
[1757432002044,2.63631336,4285.2,4285.1,0.04]
[1757432002260,6.62431336,4285.2,4285.1,0.04]
[1757432002520,7.08781336,4285.2,4285.1,0.04]
[1757432002756,3.988,4285.2,4285.1,0.04]
[1757432002880,0.116,4285.3,4285.1,0.3299]
[1757432003081,3.988,4285.5,4285.1,0.7799]
[1757432003280,0.116,4285.6,4285.1,0.7799]
[1757432003515,2.35833955,4285.8,4285.2,0.9048]
[1757432003516,0.025,4285.8,4285.2,0.9048]
[1757432003726,0.025,4285.8,4285.7,2.62324111]
[1757432003889,0.025,4285.8,4285.7,0.4059]
[1757432004226,0.3277,4285.8,4285.2,3.988]
[1757432004528,0.0242,4285.8,4285.5,0.116]
[1757432004722,0.0242,4285.8,4285.5,1.104761]
[1757432005125,0.0242,4285.8,4285.7,0.2899]
[1757432005356,0.0242,4285.8,4285.7,2.62324111]
[1757432005562,0.0242,4285.8,4285.7,0.4059]
[1757432005849,0.0242,4285.8,4285.7,0.116]
[1757432006035,0.0242,4285.8,4285.2,0.45]
[1757432006036,0.3269,4285.8,4285.2,3.988]
[1757432006238,0.3269,4285.8,4285.1,0.04]
[1757432006239,0.7904,4285.8,4285.1,0.04]
[1757432006440,2.3335093,4285.4,4285.1,0.04]
[1757432006957,0.9093,4285.7,4285.1,0.04]
[1757432006958,2.33356322,4285.3,4285.1,0.04]
[1757432007129,2.33350757,4285.4,4285.1,0.04]
[1757432007525,2.79689907,4285.6,4285.1,0.04]
[1757432007526,0.4635,4285.6,4285.1,0.04]
[1757432008038,2.79692668,4285.6,4285.1,0.04]
[1757432008751,4.0152,4285.8,4285.1,0.28207644]
[1757432008947,2.333406,4285.6,4285.1,0.042]
[1757432009527,6.34853011,4285.8,4285.1,0.042]
[1757432009759,2.33352457,4285.4,4285.1,0.042]
[1757432010048,2.7969441,4285.6,4285.1,0.042]
[1757432010274,2.33335672,4285.7,4285.1,0.042]
[1757432010421,4.459,4285.8,4285.3,0.2899]
[1757432010811,2.33350673,4285.4,4285.1,0.042]
[1757432011015,0.4635,4285.7,4285.1,0.042]
[1757432011436,4.0132,4285.8,4285.2,2.33361336]
[1757432011831,4.0132,4285.8,4285.1,2.37565366]
[1757432012033,4.0132,4285.8,4285.2,2.33358463]
[1757432012215,4.0132,4285.8,4285.1,0.49636914]
[1757432012417,4.0132,4285.8,4285.3,2.33350816]
[1757432012638,4.0132,4285.8,4285.1,3.49636914]
[1757432012843,0.0242,4285.8,4285.5,2.33344394]
[1757432013046,0.0242,4285.8,4285.2,2.35694949]
[1757432013047,0.0242,4285.8,4285.6,0.23334439]
[1757432013246,0.0242,4285.8,4285.6,2.33339555]
[1757432013652,0.0242,4285.8,4285.5,2.33344186]
[1757432013848,0.0242,4285.8,4285.7,2.33334111]
[1757432014414,0.5146,4285.8,4285.1,0.042]
[1757432014617,2.33334111,4285.7,4285.1,0.042]
[1757432015214,0.5146,4285.8,4285.1,0.042]
[1757432015420,0.0242,4285.8,4285.1,0.042]
[1757432015626,0.0242,4285.8,4285.2,2.33361336]
[1757432015859,0.0242,4285.8,4285.2,0.47093806]
[1757432016045,0.0242,4285.8,4285.4,2.4494929]
[1757432016229,0.0242,4285.8,4285.4,0.116]
[1757432016745,0.0242,4285.8,4285.5,2.33341127]
[1757432016947,0.0242,4285.8,4285.5,2.33344503]
[1757432017146,0.0242,4285.8,4285.4,0.116]
[1757432017345,0.0242,4285.8,4285.7,2.33334111]
[1757432017647,0.0242,4285.8,4285.4,3.116]
[1757432017849,0.0242,4285.8,4285.7,2.33334111]
[1757432018030,0.0242,4285.8,4285.7,2.44934111]
[1757432018829,0.5146,4285.8,4285.7,0.116]
[1757432019164,0.5146,4285.8,4284.8,0.027]
[1757432019325,0.0242,4285.8,4285.0,2.3337079]
[1757432019521,0.0242,4285.8,4285.4,0.116]
[1757432019960,0.0242,4285.8,4285.5,2.33340039]
[1757432020166,0.0242,4285.8,4285.4,0.116]
[1757432020369,0.0242,4285.8,4285.6,2.33338433]
[1757432020571,0.0242,4285.8,4285.7,2.33334111]
[1757432020879,0.0242,4285.8,4285.7,2.44934111]
[1757432022579,0.0242,4285.8,4285.7,0.116]
[1757432022778,0.0242,4285.8,4285.7,2.44934111]
[1757432022939,0.0242,4285.8,4285.7,3.37404859]
[1757432023144,0.0242,4285.8,4285.7,6.84521518]
[1757432023381,1e-08,4285.8,4285.7,6.84521518]
[1757432025276,1e-08,4285.8,4285.7,10.83421518]
[1757432026382,1e-08,4285.8,4285.7,12.50880961]
[1757432026679,1e-08,4285.8,4285.7,10.83421518]
[1757432027065,1e-08,4285.8,4285.7,13.30080961]
[1757432027265,0.025,4286.8,4285.9,2.33323222]
[1757432027453,0.025,4286.8,4285.8,0.24950499]
[1757432027454,0.025,4286.8,4286.7,2.33279679]
[1757432027660,0.025,4286.8,4286.7,6.43679679]
[1757432028438,0.025,4286.8,4286.5,1.791]
[1757432028597,0.025,4286.8,4286.5,7.12388899]
[1757432028598,0.5154,4286.8,4286.5,7.12388899]
[1757432028777,0.5154,4286.8,4286.7,2.33279679]
[1757432028973,0.5154,4286.8,4286.6,2.33282543]
[1757432029400,0.5154,4286.8,4286.7,2.33279679]
[1757432029605,0.025,4286.8,4286.7,2.33279679]
[1757432029804,0.025,4286.8,4286.7,3.67746689]
[1757432030222,0.025,4286.8,4286.7,6.32279679]
[1757432030597,0.025,4286.8,4286.6,2.33284525]
[1757432030598,0.0242,4286.8,4286.6,2.33284525]
[1757432030794,0.5146,4286.8,4286.5,4.12389132]
[1757432031033,0.0242,4286.8,4286.6,2.33285121]
[1757432031214,0.0242,4286.8,4286.7,2.33279679]
[1757432031379,0.0242,4286.8,4286.6,2.33283971]
[1757432031582,0.4904,4286.7,4286.4,3.989]
[1757432031817,0.0242,4286.8,4285.8,5.03950499]
[1757432031818,0.4904,4286.6,4286.2,2.33306643]
[1757432031992,0.4904,4286.5,4286.1,5.33308188]
[1757432032184,0.5146,4286.8,4286.1,3.0]
[1757432032380,0.4904,4286.7,4286.1,5.33307883]
[1757432032627,0.4904,4286.7,4286.1,5.33307897]
[1757432032834,0.0242,4286.8,4286.5,2.33285815]
[1757432032982,0.0242,4286.8,4286.7,2.33279679]
[1757432033540,0.0242,4286.8,4286.7,6.32279679]
[1757432033740,0.0242,4286.8,4286.7,9.81729679]
[1757432033890,0.0242,4286.8,4286.7,11.21131345]
[1757432035137,1e-08,4286.8,4286.7,11.21131345]
[1757432035349,1e-08,4286.8,4286.7,12.00331345]
[1757432037138,1e-08,4286.8,4286.7,11.21131345]
[1757432038233,1e-08,4286.8,4286.7,11.32731345]
[1757432040463,1e-08,4287.1,4287.0,2.33263354]
[1757432040667,1e-08,4287.1,4287.0,10.87034856]
[1757432040874,1e-08,4287.1,4287.0,11.36484856]
[1757432041325,1e-08,4287.1,4287.0,6.88134856]
[1757432041730,1e-08,4287.1,4287.0,10.86834856]
[1757432041950,1e-08,4287.1,4287.0,6.88134856]
[1757432042455,1e-08,4287.1,4287.0,10.86834856]
[1757432043149,1e-08,4287.1,4287.0,11.31954856]
[1757432043346,1e-08,4287.1,4287.0,10.86834856]
[1757432043669,0.49240001,4287.1,4287.0,10.86934856]
[1757432044374,0.49240001,4287.1,4287.0,7.106]
[1757432044539,0.49240001,4287.1,4287.0,6.43863354]
[1757432044873,0.49240001,4287.1,4287.0,0.116]
[1757432045171,0.49240001,4287.1,4287.0,2.33263354]
[1757432045472,0.49240001,4287.1,4287.0,6.32563354]
[1757432045655,1e-08,4287.1,4287.0,10.5030707]
[1757432045863,1e-08,4287.1,4287.0,10.6190707]
[1757432046057,0.49240001,4287.1,4287.0,9.44263354]
[1757432046461,0.49240001,4287.1,4287.0,5.44863354]
[1757432046664,0.49240001,4287.1,4287.0,9.44263354]
[1757432046906,1e-08,4287.1,4287.0,9.44263354]
[1757432047471,1e-08,4287.1,4287.0,9.89383354]
[1757432047788,1e-08,4287.1,4287.0,11.1164907]
[1757432048187,1e-08,4287.1,4287.0,10.6652907]
[1757432048583,1e-08,4287.1,4287.0,6.6712907]
[1757432048907,1e-08,4287.1,4287.0,10.6662907]
[1757432049281,1e-08,4287.1,4287.0,11.1174907]
[1757432050173,1e-08,4287.1,4287.0,10.6662907]
[1757432050371,1e-08,4287.1,4287.0,6.6712907]
[1757432050572,1e-08,4287.1,4287.0,10.6652907]
[1757432051898,1e-08,4287.1,4287.0,10.6632907]
[1757432053117,0.026,4287.8,4287.7,2.33225272]
[1757432053279,0.026,4287.8,4287.7,8.46247799]
[1757432053483,0.026,4287.8,4287.7,11.57769986]
[1757432053701,0.5184,4287.8,4287.7,11.46547799]
[1757432054011,0.026,4287.8,4287.7,11.23225272]
[1757432055422,0.0004,4288.7,4287.8,5.33219833]
[1757432056121,0.4934,4288.6,4287.8,5.33219833]
[1757432056824,0.0402,4287.9,4287.8,5.33219833]
[1757432057935,0.001,4288.6,4287.9,2.33214393]
[1757432058224,0.001,4288.6,4287.9,9.34846536]
[1757432058524,0.001,4288.6,4287.9,10.6838103]
[1757432061414,0.001,4288.6,4287.9,6.6908103]
[1757432061613,0.4924,4288.4,4287.9,10.6788103]
[1757432061825,0.4934,4288.0,4287.9,5.33214393]
[1757432062023,0.4934,4288.0,4287.9,9.32014393]
[1757432062734,0.001,4288.0,4287.9,9.32014393]
[1757432063396,0.4934,4288.0,4287.9,9.32014393]
[1757432064537,0.243895,4288.0,4287.9,9.32014393]
[1757432064711,0.243895,4288.0,4287.7,1.906]
[1757432064913,0.001,4288.6,4287.8,6.31817405]
[1757432064914,2.33277905,4288.6,4287.8,6.31817405]
[1757432065120,0.23349791,4288.3,4288.0,0.116]
[1757432065319,0.0002,4288.3,4288.0,0.116]
[1757432065499,0.0002,4288.3,4288.0,4.103]
[1757432066098,0.0002,4288.3,4288.1,2.33200915]
[1757432066303,0.0002,4288.3,4288.0,4.103]
[1757432066533,0.4924,4288.2,4288.0,4.103]
[1757432066737,0.0002,4288.3,4288.1,3.0]
[1757432066939,0.4924,4288.2,4288.1,3.116]
[1757432067141,0.4924,4288.2,4288.1,0.116]
[1757432067444,0.4924,4288.2,4288.1,4.101]
[1757432067945,0.4924,4288.2,4288.1,0.116]
[1757432068243,0.4924,4288.2,4287.8,2.33218344]
[1757432068244,0.4924,4288.2,4287.8,4.102]
[1757432068405,0.4924,4288.1,4287.8,4.102]
[1757432068606,0.4924,4288.0,4287.8,0.116]
[1757432069148,0.4924,4287.9,4287.8,0.116]
[1757432069812,0.0002,4288.3,4287.8,0.116]
[1757432069813,0.0002,4288.3,4288.2,2.33198078]
[1757432070014,0.0002,4288.3,4288.2,6.31598078]
[1757432070326,0.0002,4288.3,4288.2,6.43198078]
[1757432070924,0.0002,4288.3,4288.2,9.43198078]
[1757432071251,0.0002,4288.3,4288.2,10.68947383]
[1757432071628,0.0002,4288.3,4288.2,11.18797383]
[1757432073121,0.0002,4288.3,4288.2,6.70547383]
[1757432073654,0.0002,4288.3,4288.2,10.69047383]
[1757432073950,0.0002,4288.3,4288.2,5.44798078]
[1757432073951,0.4916,4288.3,4288.2,5.44798078]
[1757432074169,0.4916,4288.3,4288.2,9.43298078]
[1757432074378,0.0002,4288.3,4288.2,9.43298078]
[1757432074821,0.3048,4288.3,4288.2,9.43298078]
[1757432075617,0.3048,4288.3,4288.2,3.116]
[1757432075815,0.3048,4288.3,4287.8,1.79]
[1757432075816,1.2324,4288.3,4287.8,1.79]
[1757432076058,0.9276,4288.2,4287.6,3.984]
[1757432076361,0.3046,4287.7,4287.6,0.116]
[1757432076590,0.4914,4287.7,4287.6,2.44830711]
[1757432076726,0.4914,4288.1,4287.6,0.4235]
[1757432076949,0.1162,4288.3,4288.2,2.33198078]
[1757432076950,0.0002,4288.3,4288.2,2.33198078]
[1757432077149,0.0002,4288.3,4288.2,9.31498078]
[1757432078375,0.0002,4288.3,4288.2,10.47968428]
[1757432078778,0.0002,4288.3,4288.2,10.78718428]
[1757432078949,0.0002,4288.3,4288.2,11.73658428]
[1757432079856,0.0002,4288.3,4288.2,13.40701897]
[1757432080501,0.0002,4288.3,4288.2,11.73658428]
[1757432080655,0.026,4288.8,4288.7,2.3317089]
[1757432080656,1e-08,4288.8,4288.7,2.3317089]
[1757432080983,1e-08,4288.8,4288.7,9.57419687]
[1757432081147,1e-08,4288.9,4288.8,5.33165454]
[1757432081352,1e-08,4288.9,4288.8,8.07005454]
[1757432081592,1e-08,4288.9,4288.8,8.37755454]
[1757432082269,1e-08,4288.9,4288.8,12.36355454]
[1757432082601,1e-08,4288.9,4288.8,14.2568442]
[1757432083103,0.02420001,4289.8,4289.7,2.33116534]
[1757432083310,0.02420001,4289.8,4289.7,9.31616534]
[1757432083468,0.02420001,4289.8,4289.7,5.33116534]
[1757432083802,0.32880001,4289.8,4289.7,9.31616534]
[1757432084386,0.02420001,4289.8,4289.7,10.24778187]
[1757432085866,0.02420001,4289.8,4289.7,10.24378187]
[1757432086371,0.02420001,4289.8,4289.7,10.55128187]
[1757432086677,0.02420001,4289.8,4289.7,10.55028187]
[1757432086893,0.02420001,4289.8,4289.7,10.66628187]
[1757432087504,0.02420001,4289.8,4289.7,10.35878187]
[1757432087655,0.32880001,4289.8,4289.7,5.44716534]
[1757432087860,0.32880001,4289.8,4289.7,9.42816534]
[1757432088202,0.82020001,4289.8,4289.7,9.42716534]
[1757432088413,0.82020001,4289.8,4289.7,5.44716534]
[1757432088577,2.04840001,4289.8,4288.9,1.789]
[1757432088921,1.7196,4289.7,4289.1,2.44747925]
[1757432089074,1.7196,4289.7,4289.2,6.31241976]
[1757432089279,0.3046,4289.3,4289.2,6.31241976]
[1757432089514,1.2322,4289.3,4289.2,6.31241976]
[1757432090807,1.2322,4289.3,4289.2,3.981]
[1757432091004,1.2322,4289.3,4289.2,6.31243709]
[1757432091315,0.3046,4289.3,4289.2,6.31243709]
[1757432092114,0.3046,4289.3,4289.2,3.981]
[1757432092301,0.3046,4289.3,4289.2,6.31243709]
[1757432092672,0.3046,4289.3,4289.2,6.31043709]
[1757432093585,0.9276,4289.6,4289.3,2.33138274]
[1757432093783,0.9276,4289.6,4289.4,4.094]
[1757432093995,0.3046,4289.5,4289.4,6.42532839]
[1757432094712,0.02420001,4289.8,4289.7,2.33116534]
[1757432094939,0.02420001,4289.8,4289.7,9.42416534]
[1757432095773,0.02420001,4289.8,4289.7,9.73166534]
[1757432095979,0.02420001,4289.8,4289.7,10.68106534]
[1757432097319,0.02420001,4289.8,4289.7,12.47006534]
[1757432097534,0.02420001,4289.8,4289.7,14.03776687]
[1757432099423,0.02420001,4289.8,4289.7,13.08436687]
[1757432099626,0.02420001,4289.8,4289.7,14.03376687]
[1757432101114,0.32880001,4289.8,4289.7,8.80386687]
[1757432101317,0.32880001,4289.8,4289.7,8.876]
[1757432101639,0.32880001,4289.8,4289.7,11.20716534]
[1757432101930,0.32880001,4289.8,4289.7,9.1722]
[1757432101931,0.02420001,4289.8,4289.7,9.1722]
[1757432102717,0.02420001,4289.8,4289.7,9.15293481]
[1757432103273,0.02520001,4289.8,4289.7,9.62613481]